{"text_format":"3","workbook":"xlsx","n_sheets":1,"sheets":["Pakkumine"],"not_rendered":{"images":1,"defined_names":20},"read":"whole","date_system":"1900"}

{"sheet":"Pakkumine","index":0,"n_rows":39,"n_cols":7,"rows_kept":39,"merged":[[0,1,3,1],[0,3,0,6],[1,4,1,6],[2,4,2,6],[32,3,35,4],[36,3,36,6],[37,3,37,5],[38,3,38,5]]}
[{"$nulls":3},"EHITUSTÖÖDE PAKKUMINE"]
[{"$nulls":3},"Ettevõtte nimi","| Sellesse lahtrisse sisestage ettevõtte aadress."]
[{"$nulls":3},"Telefon","| Sellesse lahtrisse sisestage ettevõtte faksinumber ja kontaktmeiliaadress."]
[{"$nulls":3},"KOGUS","KIRJELDUS","ÜHIKU HIND","SUMMA"]
[null,"KLIENT",null,10,"Tooteartikkel 1",{"v":165,"d":"165.00 €"},{"$f":"IFERROR(Reaüksused[[#This Row],[KOGUS]]*Reaüksused[[#This Row],[ÜHIKU HIND]], \"\")","v":{"v":1650,"d":"1,650.00 €"}}]
[null,"Sellesse lahtrisse sisestage kliendi nimi.",null,21,"Tooteartikkel 2",{"v":40,"d":"40.00 €"},{"$f":"IFERROR(Reaüksused[[#This Row],[KOGUS]]*Reaüksused[[#This Row],[ÜHIKU HIND]], \"\")","v":{"v":840,"d":"840.00 €"}}]
[null,"PROGNOOSI NUMBER",null,5,"Tooteartikkel 3",{"v":10.5,"d":"10.50 €"},{"$f":"IFERROR(Reaüksused[[#This Row],[KOGUS]]*Reaüksused[[#This Row],[ÜHIKU HIND]], \"\")","v":{"v":52.5,"d":"52.50 €"}}]
[null,"C-1234",null,164,"Tooteartikkel 4",{"v":2.75,"d":"2.75 €"},{"$f":"IFERROR(Reaüksused[[#This Row],[KOGUS]]*Reaüksused[[#This Row],[ÜHIKU HIND]], \"\")","v":{"v":451,"d":"451.00 €"}}]
[null,"KUUPÄEV",null,6,"Tooteartikkel 5",{"v":12,"d":"12.00 €"},{"$f":"IFERROR(Reaüksused[[#This Row],[KOGUS]]*Reaüksused[[#This Row],[ÜHIKU HIND]], \"\")","v":{"v":72,"d":"72.00 €"}}]
[null,{"$f":"TODAY()","v":"2018-11-14"},null,18,"Tooteartikkel 6",{"v":5.5,"d":"5.50 €"},{"$f":"IFERROR(Reaüksused[[#This Row],[KOGUS]]*Reaüksused[[#This Row],[ÜHIKU HIND]], \"\")","v":{"v":99,"d":"99.00 €"}}]
[null,"AADRESS",null,1,"Tooteartikkel 7",{"v":25,"d":"25.00 €"},{"$f":"IFERROR(Reaüksused[[#This Row],[KOGUS]]*Reaüksused[[#This Row],[ÜHIKU HIND]], \"\")","v":{"v":25,"d":"25.00 €"}}]
[null,"Sisestage sellesse lahtrisse kliendi tänav, maja.",{"$nulls":4},{"$f":"IFERROR(Reaüksused[[#This Row],[KOGUS]]*Reaüksused[[#This Row],[ÜHIKU HIND]], \"\")","v":{"v":0,"d":"0.00 €"}}]
[null,"LINN/MAAKOND/SIHTNUMBER",{"$nulls":4},{"$f":"IFERROR(Reaüksused[[#This Row],[KOGUS]]*Reaüksused[[#This Row],[ÜHIKU HIND]], \"\")","v":{"v":0,"d":"0.00 €"}}]
[null,"Sellesse lahtrisse sisestage kliendi linn, maakond ja sihtnumber.",{"$nulls":4},{"$f":"IFERROR(Reaüksused[[#This Row],[KOGUS]]*Reaüksused[[#This Row],[ÜHIKU HIND]], \"\")","v":{"v":0,"d":"0.00 €"}}]
[null,"TELEFON",{"$nulls":4},{"$f":"IFERROR(Reaüksused[[#This Row],[KOGUS]]*Reaüksused[[#This Row],[ÜHIKU HIND]], \"\")","v":{"v":0,"d":"0.00 €"}}]
[null,"Sisestage sellesse lahtrisse kliendi telefoninumber.",{"$nulls":4},{"$f":"IFERROR(Reaüksused[[#This Row],[KOGUS]]*Reaüksused[[#This Row],[ÜHIKU HIND]], \"\")","v":{"v":0,"d":"0.00 €"}}]
[null,"MEILIAADRESS",{"$nulls":4},{"$f":"IFERROR(Reaüksused[[#This Row],[KOGUS]]*Reaüksused[[#This Row],[ÜHIKU HIND]], \"\")","v":{"v":0,"d":"0.00 €"}}]
[null,"Sisestage sellesse lahtrisse kliendi meiliaadress.",{"$nulls":4},{"$f":"IFERROR(Reaüksused[[#This Row],[KOGUS]]*Reaüksused[[#This Row],[ÜHIKU HIND]], \"\")","v":{"v":0,"d":"0.00 €"}}]
[null,"MÜÜGIESINDAJA",{"$nulls":4},{"$f":"IFERROR(Reaüksused[[#This Row],[KOGUS]]*Reaüksused[[#This Row],[ÜHIKU HIND]], \"\")","v":{"v":0,"d":"0.00 €"}}]
[null,"Sisestage sellesse lahtrisse müügiesindaja nimi.",{"$nulls":4},{"$f":"IFERROR(Reaüksused[[#This Row],[KOGUS]]*Reaüksused[[#This Row],[ÜHIKU HIND]], \"\")","v":{"v":0,"d":"0.00 €"}}]
[null,"PROJEKT",{"$nulls":4},{"$f":"IFERROR(Reaüksused[[#This Row],[KOGUS]]*Reaüksused[[#This Row],[ÜHIKU HIND]], \"\")","v":{"v":0,"d":"0.00 €"}}]
[null,"Sisestage sellesse lahtrisse projekti nimi.",{"$nulls":4},{"$f":"IFERROR(Reaüksused[[#This Row],[KOGUS]]*Reaüksused[[#This Row],[ÜHIKU HIND]], \"\")","v":{"v":0,"d":"0.00 €"}}]
[null,"KOOSTAJA:",{"$nulls":4},{"$f":"IFERROR(Reaüksused[[#This Row],[KOGUS]]*Reaüksused[[#This Row],[ÜHIKU HIND]], \"\")","v":{"v":0,"d":"0.00 €"}}]
[null,"Sisestage sellesse lahtrisse pakkumise koostanud nimi.",{"$nulls":4},{"$f":"IFERROR(Reaüksused[[#This Row],[KOGUS]]*Reaüksused[[#This Row],[ÜHIKU HIND]], \"\")","v":{"v":0,"d":"0.00 €"}}]
[null,"SAAJA",{"$nulls":4},{"$f":"IFERROR(Reaüksused[[#This Row],[KOGUS]]*Reaüksused[[#This Row],[ÜHIKU HIND]], \"\")","v":{"v":0,"d":"0.00 €"}}]
[null,"Sisestage sellesse lahtrisse pakkumise saaja nimi ja aadress.",{"$nulls":4},{"$f":"IFERROR(Reaüksused[[#This Row],[KOGUS]]*Reaüksused[[#This Row],[ÜHIKU HIND]], \"\")","v":{"v":0,"d":"0.00 €"}}]
[null,"MAKSETINGIMUSED",{"$nulls":4},{"$f":"IFERROR(Reaüksused[[#This Row],[KOGUS]]*Reaüksused[[#This Row],[ÜHIKU HIND]], \"\")","v":{"v":0,"d":"0.00 €"}}]
[null,"Neto 30",{"$nulls":4},{"$f":"IFERROR(Reaüksused[[#This Row],[KOGUS]]*Reaüksused[[#This Row],[ÜHIKU HIND]], \"\")","v":{"v":0,"d":"0.00 €"}}]
[null,"TÄHTAEG",{"$nulls":4},{"$f":"IFERROR(Reaüksused[[#This Row],[KOGUS]]*Reaüksused[[#This Row],[ÜHIKU HIND]], \"\")","v":{"v":0,"d":"0.00 €"}}]
[null,{"$f":"TODAY()+30","v":"2018-12-14"},{"$nulls":4},{"$f":"IFERROR(Reaüksused[[#This Row],[KOGUS]]*Reaüksused[[#This Row],[ÜHIKU HIND]], \"\")","v":{"v":0,"d":"0.00 €"}}]
[{"$nulls":5},"VAHESUMMA",{"$f":"SUBTOTAL(109,Reaüksused[SUMMA])","v":{"v":3189.5,"d":"3,189.50 €"}}]
[{"$nulls":3},"SEE PAKKUMINE HÕLMAB JÄRGMISI TINGIMUSI:",null,"MAKSUMÄÄR ",{"v":0.0775,"d":"7.75%"}]
[{"$nulls":3},"Sisestage siia tingimused.",null,"KÄIBEMAKS ",{"$f":"IFERROR(Vahesumma*Maksumäär, \"\")","v":{"v":247.18625,"d":"247.19 €"}}]
[{"$nulls":5},"MUU "]
[{"$nulls":5},"KOKKU ",{"$f":"IFERROR(Vahesumma+G33+Muu, \"\")","v":{"v":3436.68625,"d":"3,436.69 €"}}]
[]
[{"$nulls":3},"Pakkumise aktsepteerimiseks kirjutage alla."]
[]
[{"$nulls":3},"Volitatud esindaja",null,null,"Kuupäev"]